bitfinex-derivatives/quotes_SOLF0:USTF0_20251023
["timestamp","ask_amount","ask_price","bid_price","bid_amount"]
[1761184174030,5.38092791,181.64,181.61,1.58]
[1761184174227,2.87,181.65,181.61,1.58]
[1761184174429,5.37696638,181.64,181.61,1.58]
[1761184174622,2.87,181.65,181.61,1.58]
[1761184174930,2.87,181.7,181.63,3.52899027]
[1761184175130,5.37571607,181.69,181.63,3.52899027]
[1761184175327,5.37571607,181.68,181.65,1.94899027]
[1761184175631,2.87,181.7,181.65,3.52899027]
[1761184175930,2.87,181.68,181.65,3.52899027]
[1761184177525,2.87,181.68,181.66,1.94899027]
[1761184179027,2.87,181.71,181.66,3.52899027]
[1761184179224,2.87,181.69,181.68,1.94899027]
[1761184179423,8.07841612,181.69,181.68,1.94899027]
[1761184179829,8.07841612,181.69,181.66,3.52899027]
[1761184180026,2.87,181.69,181.66,3.52899027]
[1761184182835,2.87,181.69,181.66,1.58]
[1761184184031,2.87,181.76,181.66,4.6336782]
[1761184185222,2.87,181.76,181.67,1.58]
[1761184190842,3.0536782,181.82,181.64,38.86]
[1761184190843,2.87,181.82,181.73,1.58]
[1761184192131,4.70854952,181.81,181.73,1.58]
[1761184192337,2.87,181.8,181.73,1.58]
[1761184195534,2.87,181.8,181.71,3.0536782]
[1761184197344,2.87,181.8,181.7,1.58]
[1761184210173,2.87,181.8,181.71,1.58]
[1761184211261,2.81,181.78,181.71,1.58]
[1761184211469,2.81,181.77,181.71,1.58]
[1761184211659,4.1407255,181.79,181.71,1.58]
[1761184211968,2.81,181.8,181.71,1.58]
[1761184212270,4.1407255,181.79,181.71,1.58]
[1761184213668,2.81,181.8,181.71,1.58]
[1761184213872,6.9507255,181.8,181.71,1.58]
[1761184214071,2.81,181.8,181.71,1.58]
[1761184214264,6.9507255,181.8,181.71,1.58]
[1761184214572,2.81,181.8,181.71,1.58]
[1761184214774,2.81,181.79,181.71,1.58]
[1761184215066,6.9507255,181.79,181.71,1.58]
[1761184215372,2.81,181.79,181.71,1.58]
[1761184215766,6.9507255,181.79,181.71,1.58]
[1761184215964,2.81,181.79,181.71,1.58]
[1761184216379,6.9507255,181.79,181.71,1.58]
[1761184216672,2.81,181.79,181.71,1.58]
[1761184217074,6.9507255,181.79,181.71,1.58]
[1761184217277,2.81,181.79,181.71,1.58]
[1761184217676,6.9507255,181.79,181.71,1.58]
[1761184217972,4.1407255,181.81,181.71,1.58]
[1761184218175,7.91808559,181.83,181.71,1.58]
[1761184218176,4.1407255,181.82,181.71,1.58]
[1761184218380,4.1407255,181.82,181.75,1.58]
[1761184218979,2.81,181.83,181.75,1.58]
[1761184219364,4.1407255,181.85,181.75,1.58]
[1761184219568,4.1407255,181.84,181.78,1.58]
[1761184219768,2.81,181.84,181.78,1.58]
[1761184219970,6.9507255,181.84,181.78,1.58]
[1761184220169,2.81,181.84,181.78,1.58]
[1761184220371,6.9507255,181.84,181.78,1.58]
[1761184220676,2.81,181.84,181.78,1.58]
[1761184220876,6.9507255,181.84,181.78,1.58]
[1761184221074,2.81,181.84,181.78,1.58]
[1761184224978,2.85,181.83,181.78,1.58]
[1761184225672,2.85,181.83,181.72,1.58]
[1761184225879,6.9907255,181.82,181.72,1.58]
[1761184226073,2.85,181.82,181.73,1.58]
[1761184228380,2.74,181.84,181.73,1.58]
[1761184228572,2.74,181.82,181.73,1.58]
[1761184228773,2.74,181.81,181.73,1.58]
[1761184229375,2.74,181.79,181.71,1.58]
[1761184234475,2.74,181.79,181.71,5.07347767]
[1761184234679,2.74,181.79,181.72,1.58]
[1761184234883,2.74,181.82,181.72,5.07347767]
[1761184235188,6.80801119,181.81,181.73,1.58]
[1761184235387,2.74,181.81,181.73,1.58]
[1761184237390,2.74,181.81,181.74,1.58]
[1761184240088,2.74,181.81,181.75,1.58]
[1761184242286,4.03460959,181.83,181.75,1.58]
[1761184242487,2.74,181.84,181.75,1.58]
[1761184242794,2.74,181.84,181.78,3.53154245]
[1761184243189,2.74,181.84,181.78,1.58]
[1761184243391,2.74,181.84,181.78,3.53154245]
[1761184243586,4.03408005,181.83,181.75,1.58]
[1761184243788,2.74,181.81,181.75,3.53154245]
[1761184243990,2.74,181.8,181.75,3.53154245]
[1761184244196,2.74,181.8,181.73,3.53154245]
[1761184245295,2.74,181.8,181.75,1.95154245]
[1761184245492,2.74,181.8,181.76,1.58]
[1761184246098,6.7753945,181.83,181.77,3.53154245]
[1761184246397,2.74,181.82,181.77,3.53154245]
[1761184247895,2.74,181.82,181.75,3.53154245]
[1761184248602,2.74,181.82,181.76,1.58]
[1761184250198,2.74,181.82,181.76,3.53154245]
[1761184253904,2.74,181.85,181.79,1.58]
[1761184254094,2.74,181.85,181.74,10.02467767]
[1761184254095,2.74,181.85,181.81,1.58]
[1761184254397,2.74,181.85,181.8,1.95154245]
[1761184254590,2.74,181.85,181.78,3.53154245]
[1761184259502,2.74,181.85,181.78,1.58]
[1761184260809,1.95154245,181.84,181.75,1.57]
[1761184261007,5.10808559,181.86,181.72,1.57]
[1761184261008,1.95154245,181.8,181.72,1.57]
[1761184261309,2.97,181.79,181.72,1.57]
[1761184261510,2.97,181.79,181.73,3.52154245]
[1761184261806,2.97,181.79,181.73,1.57]
[1761184266612,2.97,181.79,181.73,3.52154245]
[1761184271214,2.97,181.79,181.73,1.57]
[1761184271422,2.97,181.79,181.73,3.52154245]
[1761184277823,2.97,181.79,181.73,1.57]
[1761184284225,2.97,181.79,181.72,1.95154245]
[1761184284526,2.9,181.78,181.7,1.57]
[1761184284725,2.9,181.77,181.7,1.57]
[1761184285829,2.9,181.77,181.7,3.52154245]
[1761184286027,2.9,181.77,181.71,1.57]
[1761184289226,2.9,181.77,181.7,1.95154245]
[1761184291332,2.9,181.77,181.7,3.53154245]
[1761184293231,2.9,181.77,181.71,1.58]
[1761184297431,2.9,181.77,181.65,26.4535]
[1761184297432,2.9,181.77,181.73,1.95154245]
[1761184297637,2.7,181.81,181.75,3.53154245]
[1761184298433,2.7,181.82,181.79,3.53154245]
[1761184298635,2.7,181.84,181.8,1.58]
[1761184298830,2.7,181.84,181.81,1.95154245]
[1761184300731,2.7,181.84,181.8,1.58]
[1761184302528,2.7,181.84,181.81,1.95154245]
[1761184302733,2.7,181.84,181.81,3.53154245]
[1761184304037,2.7,181.84,181.81,1.95154245]
[1761184304743,2.7,181.84,181.78,1.58]
[1761184305938,2.7,181.87,181.78,1.58]
[1761184306737,2.7,181.87,181.8,3.04892687]
[1761184306937,2.7,181.87,181.81,1.58]
[1761184312340,2.7,181.87,181.8,3.04892687]
[1761184312546,2.7,181.87,181.76,1.58]
[1761184312746,2.7,181.86,181.76,1.58]
[1761184313155,2.7,181.86,181.73,4.62892687]
[1761184313449,2.7,181.82,181.73,1.58]
[1761184314753,2.7,181.82,181.7,1.58]
[1761184316551,2.7,181.81,181.7,1.58]
[1761184318855,2.95,181.79,181.7,1.58]
[1761184319550,2.95,181.76,181.69,11.44]
[1761184320361,2.95,181.76,181.64,1.57]
[1761184320661,2.95,181.73,181.64,1.57]
[1761184325964,2.95,181.77,181.65,1.57]
[1761184326670,2.95,181.77,181.68,1.57]
[1761184336163,23.35729917,181.85,181.68,1.57]
[1761184336164,2.95,181.8,181.68,1.57]
[1761184337075,2.95,181.8,181.71,1.57]
[1761184339274,2.95,181.86,181.71,1.57]
[1761184339474,2.95,181.86,181.74,1.57]
[1761184339772,2.95,181.86,181.77,1.57]
[1761184341572,2.95,181.92,181.79,3.04892687]
[1761184341777,2.95,181.92,181.8,1.57]
[1761184342875,7.57943861,181.92,181.8,1.57]
[1761184343177,2.95,181.91,181.8,1.57]
[1761184345369,2.95,181.91,181.83,1.57]
[1761184346279,2.82,181.96,181.83,1.57]
[1761184347287,2.82,181.96,181.84,1.57]
[1761184348177,2.82,181.95,181.84,1.57]
[1761184352690,2.71,181.94,181.84,1.57]
[1761184353784,2.71,181.92,181.81,29.21]
[1761184354784,2.71,181.89,181.81,29.21]
[1761184356690,2.71,181.89,181.81,1.57]
[1761184364795,2.71,181.89,181.82,1.950545]
[1761184364987,2.71,181.89,181.83,1.57]
[1761184365385,1.950545,181.92,181.83,1.57]
[1761184365695,2.71,181.91,181.83,1.57]
[1761184368498,4.61932271,181.95,181.78,12.0]
[1761184368499,2.71,181.89,181.8,3.520545]
[1761184368894,2.71,181.89,181.81,1.57]
[1761184369791,5.09824597,181.95,181.81,1.57]
[1761184369792,2.71,181.87,181.81,1.57]
[1761184370193,2.71,181.87,181.79,1.57]
[1761184371301,2.71,181.85,181.76,3.520545]
[1761184371496,2.71,181.85,181.77,1.57]
[1761184372897,2.71,181.85,181.78,1.950545]
[1761184373097,2.71,181.85,181.79,1.57]
[1761184380506,2.71,181.85,181.75,3.520545]
[1761184380709,2.77,181.83,181.75,3.520545]
[1761184381006,2.77,181.83,181.74,31.9]
[1761184381911,2.77,181.81,181.74,31.9]
[1761184382307,2.77,181.81,181.74,33.47]
[1761184382508,2.77,181.81,181.75,1.57]
[1761184383406,2.77,181.81,181.74,31.9]
[1761184383407,2.77,181.83,181.78,1.57]
[1761184383612,2.77,181.83,181.77,1.950545]
[1761184385408,2.77,181.83,181.75,3.520545]
[1761184385607,1.950545,181.82,181.75,1.57]
[1761184385809,2.77,181.81,181.74,31.9]
[1761184387110,2.77,181.81,181.74,33.47]
[1761184387310,2.77,181.81,181.75,1.57]
[1761184389508,7.04879097,181.86,181.77,1.57]
[1761184389712,2.77,181.85,181.77,1.57]
[1761184390014,2.77,181.85,181.7,57.6]
[1761184390015,2.77,181.83,181.74,1.950545]
[1761184390213,2.77,181.83,181.75,1.57]
[1761184390411,2.77,181.83,181.77,1.57]
[1761184391014,2.77,181.83,181.76,1.950545]
[1761184393317,2.77,181.83,181.78,1.950545]
[1761184396308,2.77,181.81,181.7,1.57]
[1761184396620,2.77,181.79,181.7,3.520545]
[1761184397415,2.77,181.79,181.7,1.950545]
[1761184397612,7.86824597,181.79,181.7,1.950545]
[1761184397817,2.77,181.78,181.7,1.950545]
[1761184398819,2.77,181.77,181.68,1.950545]
[1761184399609,2.77,181.76,181.68,1.950545]
[1761184407522,2.79,181.75,181.66,1.950545]
[1761184410538,1.950545,181.74,181.64,1.57]
[1761184410838,1.950545,181.74,181.64,3.520545]
[1761184410839,2.93,181.73,181.64,3.520545]
[1761184412132,2.93,181.73,181.65,1.58]
[1761184412430,2.93,181.73,181.66,3.530545]
[1761184412824,2.93,181.73,181.67,1.58]
[1761184418537,2.93,181.77,181.7,1.58]
[1761184421732,2.93,181.77,181.71,1.950545]
[1761184421938,2.93,181.8,181.75,3.530545]
[1761184422134,2.93,181.8,181.77,1.950545]
[1761184422444,2.93,181.8,181.79,1.950545]
[1761184422947,2.93,181.8,181.77,3.530545]
[1761184424947,2.93,181.83,181.77,3.530545]
[1761184425145,2.93,181.84,181.81,1.950545]
[1761184425348,2.93,181.84,181.79,1.950545]
[1761184425551,2.93,181.84,181.77,1.58]
[1761184425744,2.93,181.84,181.79,3.530545]
[1761184426753,2.93,181.84,181.79,1.58]
[1761184439270,2.93,181.84,181.74,1.58]
[1761184460690,2.83,181.83,181.74,1.58]
[1761184461302,2.83,181.81,181.71,1.58]
[1761184461602,2.83,181.8,181.71,1.58]
[1761184462400,2.83,181.79,181.71,1.58]
[1761184462787,2.83,181.78,181.71,1.58]
[1761184463083,2.83,181.77,181.71,1.58]
[1761184466197,5.1156798,181.79,181.71,1.58]
[1761184466388,8.0856798,181.8,181.71,1.58]
[1761184466793,3.04951647,181.82,181.71,1.58]
[1761184466794,5.1156798,181.81,181.71,4.62951647]
[1761184466991,2.97,181.81,181.72,1.57]
[1761184467493,2.97,181.8,181.72,1.57]
[1761184467695,2.97,181.79,181.72,1.57]
[1761184468995,5.1156798,181.81,181.72,1.57]
[1761184469194,7.9056798,181.81,181.72,1.57]
[1761184469388,2.79,181.81,181.72,1.57]
[1761184470595,5.14124264,181.81,181.72,1.57]
[1761184470796,2.79,181.8,181.72,1.57]
[1761184473995,2.79,181.79,181.72,1.57]
[1761184474595,3.99776314,181.78,181.72,1.57]
[1761184474904,3.99776314,181.77,181.72,1.57]
[1761184475101,2.79,181.79,181.72,1.57]
[1761184475302,3.99734004,181.78,181.72,1.57]
[1761184475505,2.79,181.79,181.72,1.57]
[1761184475804,3.9974091,181.78,181.72,1.57]
[1761184476004,2.79,181.79,181.72,1.57]
[1761184476203,3.9974091,181.78,181.72,1.57]
[1761184476507,6.7874091,181.77,181.72,1.57]
[1761184476706,3.9974091,181.76,181.72,1.57]
[1761184476909,3.99796249,181.75,181.72,1.57]
[1761184477111,2.79,181.77,181.72,1.57]
[1761184477310,2.79,181.75,181.72,1.57]
[1761184477511,2.79,181.78,181.72,1.57]
[1761184477712,2.79,181.76,181.72,1.57]
[1761184478008,6.7879009,181.75,181.72,1.57]
[1761184478206,2.79,181.75,181.72,1.57]
[1761184479112,2.79,181.78,181.72,1.57]
[1761184479413,3.9978434,181.77,181.72,1.57]
[1761184479606,3.9978434,181.76,181.72,1.57]
[1761184479806,2.79,181.78,181.72,1.57]
[1761184480007,6.78748727,181.77,181.72,1.57]
[1761184480206,3.99748727,181.76,181.72,1.57]
[1761184480408,2.79,181.77,181.72,1.57]
[1761184480711,3.99761339,181.76,181.72,1.57]
[1761184480901,2.79,181.77,181.72,1.57]
[1761184481104,3.99761264,181.76,181.72,1.57]
[1761184481305,2.79,181.79,181.72,1.57]
[1761184481501,3.99765931,181.78,181.72,1.57]
[1761184481705,6.84729917,181.83,181.72,1.57]
[1761184481706,6.78765931,181.77,181.72,1.57]
[1761184482013,3.99765931,181.76,181.72,1.57]
[1761184482214,2.79,181.77,181.72,1.57]
[1761184482414,3.99801006,181.76,181.72,1.57]
[1761184482616,5.14124264,181.8,181.72,1.57]
[1761184482617,2.79,181.78,181.72,1.57]
[1761184482914,6.7879295,181.77,181.72,1.57]
[1761184483113,3.9979295,181.76,181.72,1.57]
[1761184483316,3.9979295,181.75,181.72,1.57]
[1761184483513,5.14124264,181.8,181.72,1.57]
[1761184483815,3.99820264,181.79,181.72,1.57]
[1761184484016,3.99820264,181.78,181.72,1.57]
[1761184484216,3.99820264,181.77,181.72,1.57]
[1761184484411,2.79,181.8,181.72,1.57]
[1761184484612,3.9973482,181.79,181.75,1.57]
[1761184484810,2.79,181.82,181.75,1.57]
[1761184485011,2.79,181.8,181.75,1.57]
[1761184485210,6.78726654,181.79,181.75,1.57]
[1761184485410,3.99726654,181.78,181.75,1.57]
[1761184485606,2.79,181.79,181.75,1.57]
[1761184485814,3.9976016,181.78,181.75,1.57]
[1761184486020,2.79,181.79,181.75,1.57]
[1761184486220,3.9976016,181.78,181.75,1.57]
[1761184486422,2.79,181.79,181.75,1.57]
[1761184486615,3.9975536,181.78,181.75,1.57]
[1761184486917,2.79,181.79,181.75,1.57]
[1761184487119,3.99753763,181.78,181.75,1.57]
[1761184487310,2.79,181.82,181.75,1.57]
[1761184487508,6.78743978,181.81,181.75,1.57]
[1761184487712,6.78743978,181.8,181.75,1.57]
[1761184487913,3.99743978,181.79,181.75,1.57]
[1761184488116,2.79,181.8,181.75,1.57]
[1761184488313,3.99735916,181.79,181.75,1.57]
[1761184488512,2.79,181.8,181.75,1.57]
[1761184488722,3.99720959,181.79,181.75,1.95215661]
[1761184488922,3.99738639,181.78,181.76,1.57]
[1761184489114,7.93124264,181.82,181.76,1.57]
[1761184489318,2.79,181.8,181.76,1.57]
[1761184489521,3.99729021,181.79,181.76,1.57]
[1761184489723,2.79,181.8,181.76,1.57]
[1761184489914,3.99709866,181.79,181.76,1.57]
[1761184490114,3.99709866,181.78,181.76,1.57]
[1761184490318,2.79,181.81,181.76,1.57]
[1761184490614,6.7870942,181.8,181.76,1.57]
[1761184490921,3.9970942,181.79,181.76,1.57]
[1761184491123,3.9970942,181.78,181.76,1.57]
[1761184491323,2.79,181.8,181.76,1.57]
[1761184491526,3.99710383,181.79,181.76,1.57]
[1761184491718,2.79,181.83,181.77,3.52215661]
[1761184491919,2.79,181.81,181.78,1.57]
[1761184492220,3.99691275,181.8,181.78,1.57]
[1761184492728,2.79,181.81,181.78,1.57]
[1761184493429,2.79,181.81,181.77,3.52215661]
[1761184493726,2.79,181.81,181.77,1.57]
[1761184497128,3.99691888,181.8,181.77,1.57]
[1761184497430,2.79,181.81,181.77,1.57]
[1761184497629,3.9965369,181.8,181.77,1.57]
[1761184497822,2.79,181.81,181.77,1.57]
[1761184498127,3.9965369,181.8,181.77,1.57]
[1761184498428,2.79,181.81,181.77,1.57]
[1761184498729,3.99612804,181.8,181.77,1.57]
[1761184498928,2.92,181.82,181.77,1.57]
[1761184499124,3.99593385,181.81,181.77,1.57]
[1761184499328,2.92,181.84,181.77,1.57]
[1761184499527,3.99489083,181.83,181.77,1.57]
[1761184499729,3.99489083,181.82,181.77,1.57]
[1761184499922,2.92,181.84,181.77,1.57]
[1761184500118,3.99489042,181.83,181.77,1.57]
[1761184500322,3.99489042,181.82,181.77,1.57]
[1761184500527,2.92,181.84,181.77,1.57]
[1761184500829,6.91455376,181.83,181.77,1.57]
[1761184501018,6.91455376,181.82,181.77,1.57]
[1761184501221,2.92,181.82,181.77,1.57]
[1761184501424,2.92,181.8,181.77,1.57]
[1761184501622,2.92,181.8,181.74,6.5211]
[1761184502023,3.99435697,181.79,181.74,6.5211]
[1761184502226,2.92,181.79,181.75,1.57]
[1761184502828,2.92,181.79,181.72,6.5217]
[1761184503019,3.99454965,181.78,181.72,8.47385661]
[1761184503327,2.92,181.79,181.72,8.47385661]
[1761184503527,3.99474147,181.78,181.73,1.57]
[1761184503727,6.91480468,181.77,181.73,1.57]
[1761184503921,1.95215661,181.81,181.73,1.57]
[1761184503922,2.92,181.76,181.73,1.57]
[1761184505121,1.95215661,181.81,181.74,1.95215661]
[1761184505326,2.92,181.79,181.74,1.95215661]
[1761184505527,6.91474021,181.78,181.75,1.57]
[1761184505727,2.92,181.78,181.75,1.57]
[1761184510834,2.92,181.81,181.75,1.57]
[1761184511132,2.92,181.79,181.75,1.57]
[1761184511329,6.91745891,181.78,181.75,1.57]
[1761184511537,2.92,181.78,181.75,1.57]
[1761184515334,2.92,181.78,181.76,1.95215661]
[1761184515533,2.92,181.78,181.76,3.52215661]
[1761184517036,2.92,181.78,181.76,1.95215661]
[1761184518839,2.92,181.82,181.76,3.52215661]
[1761184519138,5.14103344,181.83,181.76,3.52215661]
[1761184519139,2.92,181.8,181.77,1.57]
[1761184519633,2.92,181.8,181.78,1.95215661]
[1761184521840,2.92,181.83,181.79,1.57]
[1761184522039,6.91699543,181.82,181.8,3.52215661]
[1761184522240,6.91699543,181.81,181.8,1.95215661]
[1761184523246,3.99699543,181.81,181.8,1.95215661]
[1761184523745,2.92,181.84,181.8,1.95215661]
[1761184523947,2.87,181.82,181.8,1.95215661]
[1761184524138,2.87,181.82,181.8,3.52215661]
[1761184524445,2.87,181.82,181.8,1.95215661]
[1761184525147,2.87,181.82,181.8,3.52215661]
[1761184528544,2.96,181.85,181.8,3.52215661]
[1761184528745,6.97554679,181.84,181.81,1.57]
[1761184528953,4.01554679,181.83,181.81,1.57]
[1761184529144,4.01554679,181.82,181.81,1.57]
[1761184529349,2.96,181.84,181.81,1.57]
[1761184530050,2.96,181.87,181.81,1.57]
[1761184530346,5.14103344,181.88,181.81,1.57]
[1761184530347,6.97451463,181.86,181.81,1.57]
[1761184530543,6.97451463,181.85,181.81,1.57]
[1761184530852,4.01451463,181.84,181.81,1.57]
[1761184531148,2.96,181.85,181.81,1.57]
[1761184531447,4.01262378,181.84,181.81,1.57]
[1761184531651,2.96,181.85,181.81,1.57]
[1761184531847,4.01262378,181.84,181.81,1.57]
[1761184532050,2.96,181.85,181.81,1.57]
[1761184541655,2.96,181.85,181.78,1.95215661]
[1761184541952,2.96,181.83,181.79,1.57]
[1761184555557,2.96,181.83,181.76,9.56946363]
[1761184555854,2.96,181.83,181.77,1.57]
[1761184559858,2.92,181.81,181.75,45.58]
[1761184560063,2.92,181.79,181.75,45.58]
[1761184560463,2.92,181.77,181.75,45.58]
[1761184561960,2.92,181.77,181.75,47.16]
[1761184562255,2.92,181.81,181.75,47.16]
[1761184562456,4.07208136,181.8,181.76,1.58]
[1761184562762,2.92,181.78,181.75,47.16]
[1761184564062,6.9924757,181.77,181.75,45.58]
[1761184564261,2.92,181.77,181.75,45.58]
[1761184567464,2.92,181.77,181.75,47.16]
[1761184567665,2.92,181.81,181.75,47.16]
[1761184567965,2.92,181.79,181.75,47.16]
[1761184568263,6.98942364,181.78,181.75,47.16]
[1761184568467,2.92,181.78,181.75,47.16]
[1761184574466,2.92,181.78,181.76,1.58]
[1761184577167,2.92,181.78,181.75,47.16]
[1761184577463,2.92,181.78,181.75,45.58]
[1761184577867,2.92,181.76,181.72,1.58]
[1761184578163,2.92,181.76,181.71,45.56]
[1761184578466,2.92,181.76,181.72,1.58]
[1761184583276,2.92,181.8,181.72,1.58]
[1761184583459,6.98400925,181.79,181.72,1.58]
[1761184583665,4.06400925,181.78,181.72,1.58]
[1761184583864,2.92,181.79,181.72,1.58]
[1761184584070,6.99396151,181.78,181.72,1.58]
[1761184584366,2.93,181.78,181.72,1.58]
[1761184593080,2.78,181.76,181.71,45.56]
[1761184593279,2.78,181.76,181.71,47.13]
[1761184593482,2.78,181.76,181.72,1.57]
[1761184593679,2.78,181.76,181.73,1.57]
[1761184595583,2.78,181.76,181.73,47.13]
[1761184597991,2.78,181.76,181.74,1.57]
[1761184598590,2.78,181.79,181.74,1.57]
[1761184598794,4.0826879,181.78,181.76,1.57]
[1761184599092,2.78,181.79,181.76,1.57]
[1761184599292,4.08340348,181.78,181.76,1.57]
[1761184599593,2.78,181.79,181.76,1.57]
[1761184599791,4.08340314,181.78,181.76,1.57]
[1761184599996,2.78,181.79,181.76,1.57]
[1761184600182,4.08340314,181.78,181.76,1.57]
[1761184600387,2.78,181.79,181.76,1.57]
[1761184600589,4.08457387,181.78,181.76,1.57]
[1761184600793,2.78,181.79,181.76,1.57]
[1761184600988,4.08457387,181.78,181.76,1.57]
[1761184601195,2.78,181.82,181.76,1.57]
[1761184601396,4.08509996,181.81,181.79,1.57]
[1761184601597,4.08509996,181.8,181.79,1.57]
[1761184602099,2.78,181.82,181.79,1.57]
[1761184602290,4.08446209,181.81,181.79,1.57]
[1761184602489,2.78,181.82,181.79,1.57]
[1761184602689,4.08533094,181.81,181.79,1.57]
[1761184602893,2.78,181.84,181.79,1.57]
[1761184603099,6.865329,181.83,181.81,4.61886363]
[1761184603286,4.085329,181.82,181.81,4.61886363]
[1761184605089,5.14103344,181.87,181.81,3.04886363]
[1761184605296,6.86356498,181.86,181.82,1.57]
[1761184605500,4.08356498,181.85,181.82,1.57]
[1761184605696,2.78,181.86,181.82,1.57]
[1761184605697,4.08356498,181.84,181.82,1.57]
[1761184605894,2.78,181.86,181.83,45.56]
[1761184606096,4.07553696,181.85,181.83,47.13]
[1761184606402,4.07553696,181.84,181.83,47.13]
[1761184608292,4.07101869,181.84,181.83,47.13]
[1761184609299,2.78,181.86,181.83,47.13]
[1761184609496,6.84995362,181.85,181.83,47.13]
[1761184609687,2.78,181.85,181.83,47.13]
[1761184610700,2.78,181.85,181.84,1.95036034]
[1761184610902,6.84900309,181.85,181.84,1.95036034]
[1761184613704,2.78,181.87,181.85,1.57]
[1761184613896,2.78,181.87,181.86,1.95036034]
[1761184614093,6.8466314,181.87,181.86,1.95036034]
[1761184616608,2.78,181.91,181.87,1.57]
[1761184616811,2.78,181.89,181.87,47.11]
[1761184617801,2.78,181.92,181.87,45.54]
[1761184618002,6.8463535,181.91,181.89,1.95036034]
[1761184618206,6.8463535,181.9,181.87,45.54]
[1761184618406,4.06508141,181.89,181.87,47.49036034]
[1761184618606,2.89,181.88,181.87,47.49036034]
[1761184618809,2.89,181.92,181.87,49.05036034]
[1761184619009,2.89,181.9,181.87,49.05036034]
[1761184619506,2.89,181.9,181.89,1.95036034]
[1761184620014,2.89,181.89,181.87,47.49036034]
[1761184620414,2.89,181.89,181.85,1.95036034]
[1761184620613,2.89,181.87,181.85,33.49036034]
[1761184622113,2.89,181.87,181.85,31.54]
[1761184623716,2.89,181.87,181.81,3.51036034]
[1761184626216,2.89,181.87,181.84,1.95036034]
[1761184627418,2.89,181.85,181.84,1.95036034]
[1761184635420,2.89,181.9,181.84,1.95036034]
[1761184635622,2.89,181.88,181.86,1.95036034]
[1761184637625,6.95875825,181.87,181.86,1.95036034]
[1761184639330,2.89,181.89,181.86,3.51036034]
[1761184639520,4.07103087,181.88,181.86,1.56]
[1761184639722,2.89,181.89,181.86,1.56]
[1761184639929,5.14103344,181.94,181.86,1.56]
[1761184639930,2.89,181.93,181.86,1.56]
[1761184640128,2.89,181.91,181.86,1.56]
[1761184640323,4.07069217,181.9,181.86,1.56]
[1761184640527,4.07069217,181.89,181.86,1.56]
[1761184640728,2.89,181.9,181.88,1.95036034]
[1761184640930,4.07143708,181.89,181.88,1.95036034]
[1761184641827,6.96143708,181.89,181.88,1.95036034]